[Event "German Masters 2022"]
[Site "Magdeburg"]
[Date "2022.08.16"]
[Round "1.1"]
[White "Koelle, Tobias"]
[Black "Keymer, Vincent"]
[Result "0-1"]
[ECO "D37"]
[WhiteElo "2436"]
[BlackElo "2686"]
[Annotator "TA"]
[PlyCount "86"]
[EventDate "2022.08.16"]
[EventType "tourn"]
[EventCountry "GER"]
[SourceTitle "playchess.com"]
[Source "ChessBase"]
[SourceQuality "1"]
[TimeControl "40/5400+30:1800+30"]

{[%evp 9,86,34,38,31,39,29,32,9,29,13,16,12,12,0,7,7,17,8,14,-8,-17,-16,0,-15,-17,-21,-13,-64,-64,-90,-98,-156,-82,-287,-287,-327,-332,-346,-352,-347,-341,-330,-327,-326,-231,-243,-222,-213,-101,-100,-81,-58,-66,-196,-122,-123,-37,-65,-45,-236,-234,-255,-244,-250,-250,-255,-262,-280,-282,-417,-415,-395,-409,-403,-402,-12818,-4997,-1985,-1872]} 1. d4 {[%emt 0:00:03]} Nf6 {[%emt 0:00:04]} 2. c4 {[%emt 0:00:06]} e6 {[%emt 0:00:03]} 3. Nf3 {[%emt 0:00:05]} d5 {[%emt 0:00:04]} 4. Nc3 {[%emt 0:00:07]} h6 {[%emt 0:00:03]} 5. Bf4 {[%emt 0:04:19]} Bd6 {[%emt 0:00:16]} 6. Bxd6 {[%emt 0:00:29] D37: Queen's Gambit Declined: 5 Bf4.} Qxd6 $1 {[%emt 0:00:06] 6...Qxd6 is better than 6...cxd6.} 7. e3 {[%emt 0:00:39]} O-O {[%emt 0:00:10]} 8. Bd3 {[%emt 0:03:05] White is slightly better.} b6 {[%emt 0:08:32] [#]} 9. cxd5 $146 {[%emt 0:09:11]} ({Predecessor:} 9. O-O dxc4 10. Bxc4 Bb7 11. Qe2 c5 12. Nb5 Qe7 13. dxc5 bxc5 14. Rfd1 Nc6 15. Nd6 Rab8 16. Nxb7 Qxb7 17. Rab1 Na5 18. Ba6 Qc7 {0-1 (18) Duenas,A (2053)-Basant,N (2000) FICGS email 2012}) 9... Nxd5 {[%emt 0:04:00]} 10. Nxd5 {[%emt 0:04:09]} exd5 {[%emt 0:01:33]} 11. O-O {[%emt 0:00:25]} Be6 {[%emt 0:02:00]} 12. Rc1 {[%emt 0:04:32]} Nd7 {[%emt 0:03:37]} 13. Qa4 {[%emt 0:18:45] Rc6 is the strong threat.} c5 $1 {[%emt 0:01:26]} 14. dxc5 {[%emt 0:00:47]} bxc5 {[%emt 0:04:52]} 15. Rfd1 {[%emt 0:16:39]} Rfc8 {[%emt 0:10:57]} 16. b3 {[%emt 0:06:54]} a5 {[%emt 0:09:40]} 17. Qa3 {[%emt 0:06:41]} Qb6 {[%emt 0:03:10]} (17... Qb8 {feels hotter.} 18. h3 Qb4 19. Qb2 a4) 18. e4 {[%emt 0:04:18]} ({White should try} 18. Bc2 $11) 18... d4 $1 $15 {[%emt 0:01:46][%cal Oa5a4,Bd5d4,Bd4d3][%mdl 32]} 19. Qa4 {[%emt 0:06:18]} Bg4 {[%emt 0:04:38]} 20. Re1 {[%emt 0:01:45]} (20. Rd2 $142) 20... Qg6 {[%emt 0:02:08]} (20... Qd8 $142 $1 {aiming for ...Bxf3.} 21. Bb5 Nb6) 21. Nd2 {[%emt 0:05:00]} (21. g3 $17) 21... Ne5 $19 {[%emt 0:01:08]} 22. Bf1 {[%emt 0:01:53]} Qg5 {[%emt 0:03:32]} 23. Rc2 {[%emt 0:00:37]} d3 {[%emt 0:03:20]} 24. Rb2 {[%emt 0:00:02]} Bd7 {[%emt 0:03:37]} 25. Qa3 {[%emt 0:00:08]} a4 {[%emt 0:00:08]} 26. bxa4 {[%emt 0:02:43]} Bxa4 {[%emt 0:03:48]} 27. Qc3 {[%emt 0:01:34]} (27. Bxd3 $2 Bc2 $1 {[%mdl 512]} 28. Ba6 Qxd2 $19) 27... Bc2 {[%emt 0:00:11][%cal Oa8a3] White must now prevent ...Ra3!} 28. Re3 {[%emt 0:01:25]} Ng4 {[%emt 0:06:52]} (28... Qf6 $19 {[%cal Oe5f3] has better winning chances. Hoping for ...Nf3+!} 29. Rxc2 dxc2 30. Qxc2 Ng4) 29. Rg3 $17 {[%emt 0:00:52]} Qf4 {[%emt 0:00:07]} 30. Nf3 {[%emt 0:00:35]} c4 {[%emt 0:04:21] Threatens to win with ...Bd1. The board is on fire.} (30... Qxe4 $2 31. h3 $18) 31. Rb4 {[%emt 0:00:57] [#]} (31. h3 $15 Nf6 32. Nd2) 31... Nf6 {[%emt 0:08:08] Active counter play!} ({Don't take} 31... Qxe4 32. h3 h5 33. hxg4 hxg4 34. Nd2 $18) (31... Rxa2 32. Rxc4 Rxc4 33. Qxc4 Nxf2 34. Qc3 $15 (34. Qxa2 Nxe4 35. Qa8+ Kh7 $11)) (31... Bd1 $1 $19 {[%cal Rd1f3] And now ...Bxf3 would win.} 32. Rxc4 Rxc4 33. Qxc4 d2 34. Rxg4 Qxg4 35. Nxd2 Qd7) 32. Nd2 {[%emt 0:00:31]} Rab8 {[%emt 0:02:14]} (32... Bd1 $17 33. Rxc4 Rxc4 34. Nxc4 Be2) 33. Rxb8 {[%emt 0:00:29]} Rxb8 {[%emt 0:00:04]} (33... Qxb8 {with more complications.} 34. Nxc4 Qf4 35. h3 Qxf2+ 36. Kxf2 Nxe4+ 37. Ke3 Nxc3 38. Bxd3 Bxd3 39. Kxd3 Nxa2 40. Kd4 Rd8+) 34. Rf3 $2 {[%emt 0:00:40]} (34. h3 $15) 34... Nxe4 $19 {[%emt 0:06:02]} 35. Rxf4 {[%emt 0:00:25]} Nxc3 {[%emt 0:00:04]} 36. Rxc4 {[%emt 0:00:07]} Nb1 {[%emt 0:01:40]} ({Not} 36... Nxa2 37. f4 $15) 37. Nf3 {[%emt 0:00:51] [#]} Rd8 {[%emt 0:01:45]} ({Weaker is} 37... d2 38. Nxd2 Bf5 39. Nb3 $14) 38. a4 {[%emt 0:00:34]} Bb3 {[%emt 0:00:48]} 39. Rd4 {[%emt 0:00:42]} (39. Rb4 $142 d2 40. Nxd2 Nxd2 41. f3) 39... Rxd4 {[%emt 0:00:16]} 40. Nxd4 {[%emt 0:00:05]} d2 {[%emt 0:00:13]} 41. Be2 {[%emt 0:30:14]} Nc3 {[%emt 0:31:13]} 42. Bf3 {[%emt 0:00:46]} (42. Bh5 $142 Bxa4 43. f4) 42... Bd5 {[%emt 0:00:00] ( -> ...Bxf3)} 43. Bg4 {[%emt 0:00:00]} h5 {[%emt 0:00:00] Weighted Error Value: White=0.53/Black=0.14 (very precise)} 0-1

[Event "German Masters 2022"]
[Site "Magdeburg"]
[Date "2022.08.16"]
[Round "1.2"]
[White "Engel, Luis"]
[Black "Rosner, Jonas"]
[Result "1-0"]
[ECO "B12"]
[WhiteElo "2558"]
[BlackElo "2478"]
[Annotator "TA"]
[PlyCount "81"]
[EventDate "2022.08.16"]
[EventType "tourn"]
[EventCountry "GER"]
[SourceTitle "playchess.com"]
[Source "ChessBase"]
[SourceQuality "1"]
[TimeControl "40/5400+30:1800+30"]

{[%evp 10,81,9,10,27,21,20,0,0,6,20,14,34,39,43,56,32,-15,-3,-18,-12,-16,-7,-7,0,-41,0,0,0,0,0,0,0,0,85,58,59,28,42,47,61,66,65,62,188,197,183,168,179,179,186,152,271,257,266,270,309,309,313,314,389,448,427,372,514,523,477,249,256,247,366,314,1053,533]} 1. e4 {[%emt 0:00:03]} c6 {[%emt 0:00:07]} 2. d4 {[%emt 0:00:03]} d5 {[%emt 0:00:06]} 3. e5 {[%emt 0:00:04]} Bf5 {[%emt 0:00:12]} 4. Nd2 {[%emt 0:00:05]} e6 {[%emt 0:00:24]} 5. Nb3 {[%emt 0:00:05]} Nd7 {[%emt 0:01:06]} 6. Nf3 {[%emt 0:00:06]} a6 {[%emt 0:00:59] B12: Caro-Kann: Advance Variation.} 7. Be2 {[%emt 0:00:32]} c5 {[%emt 0:01:48]} 8. dxc5 {[%emt 0:00:31]} Bxc5 {[%emt 0:01:25] The position is equal.} 9. Nxc5 {[%emt 0:02:12]} Nxc5 {[%emt 0:00:04]} 10. Be3 $5 {[%emt 0:03:46][%mdl 4] A promising side line.} Qc7 {[%emt 0:01:59]} 11. O-O {[%emt 0:04:45]} Ne7 {[%emt 0:02:02]} 12. c4 {[%emt 0:10:06]} dxc4 {[%emt 0:09:08] [#]} 13. Bxc4 $146 {[%emt 0:05:04]} (13. Qd6 $14 {was preferrable.} Rc8 14. Bxc4) ({Predecessor:} 13. Qd6 Rc8 14. Rac1 b5 15. Rfd1 Nd5 16. Bxc5 Qxc5 17. Qxa6 O-O 18. Nd4 Nf4 19. Bf1 {1-0 (71) Gokerkan,C (2466)-Bluebaum,M (2674) Chess.com INT 2021}) 13... Rd8 $11 {[%emt 0:09:52]} 14. Qc1 {[%emt 0:09:04]} O-O {[%emt 0:07:19]} 15. b3 {[%emt 0:13:08]} Nd7 {[%emt 0:17:59]} 16. Bg5 {[%emt 0:04:51]} Rfe8 {[%emt 0:03:01]} 17. Qa3 {[%emt 0:05:00]} Qc5 {[%emt 0:03:47]} 18. Qxc5 {[%emt 0:00:57]} Nxc5 {[%emt 0:00:02]} 19. Rfd1 {[%emt 0:00:26]} Rc8 {[%emt 0:03:51]} 20. Rac1 {[%emt 0:04:03]} h6 {[%emt 0:05:01]} 21. Be3 {[%emt 0:00:47]} Be4 {[%emt 0:02:06]} (21... Ne4 $11) 22. Be2 {[%emt 0:03:55]} b6 {[%emt 0:03:44]} 23. b4 {[%emt 0:07:24]} Na4 {[%emt 0:00:41] Strongly threatening ...Nc3.} 24. Bxa6 {[%emt 0:00:08]} Rxc1 {[%emt 0:03:41]} 25. Rxc1 {[%emt 0:00:04] Black must now prevent Bb5.} ({Reject} 25. Bxc1 Ra8 26. Bc4 Nc6 $15) 25... Ra8 $1 {[%emt 0:01:29]} 26. Bb5 $36 {[%emt 0:03:23][%mdl 2048] And now Nd2 would win. White is pushing. A strong pair of Bishops.} Nf5 {[%emt 0:03:39] A mistake that costs the game.} (26... Nb2 $1 $14) 27. Nd2 $18 {[%emt 0:02:09]} Nxe3 {[%emt 0:05:07]} 28. fxe3 {[%emt 0:00:50][%cal Bf2e3,Be3e4][%mdl 32]} Bg6 {[%emt 0:01:06] [#]} 29. e4 $1 {[%emt 0:14:34]} Nb2 {[%emt 0:07:59]} 30. Rc2 {[%emt 0:00:28]} Nd1 {[%emt 0:00:33]} (30... Rxa2 $16 {keeps fighting.} 31. Bf1 Kf8) 31. a4 {[%emt 0:00:51]} Ne3 {[%emt 0:02:43]} 32. Rc3 {[%emt 0:02:43]} Ng4 {[%emt 0:01:24]} 33. Nc4 {[%emt 0:00:31] Threatens to win with h3.} Rd8 {[%emt 0:00:15][%cal Rd8d1] [#]} 34. Rc1 {[%emt 0:00:06] Against Rd1+. Hoping for h3.} Rc8 {[%emt 0:01:10]} 35. Re1 {[%emt 0:00:41]} f6 {[%emt 0:00:52]} 36. exf6 {[%emt 0:01:29]} Nxf6 {[%emt 0:00:20]} 37. Nxb6 {[%emt 0:01:06]} Rc2 {[%emt 0:00:07]} 38. Nd7 {[%emt 0:01:22]} (38. e5 $142) 38... Rb2 {[%emt 0:01:08]} 39. Bc4 {[%emt 0:01:46]} Rxb4 {[%emt 0:00:45]} (39... Nxd7 $142 40. Bxe6+ Kf8) 40. Bxe6+ {[%emt 0:00:06]} Kh7 $2 {[%emt 0:00:49]} (40... Bf7) 41. Nf8+ {[%emt 0:30:18] Weighted Error Value: White=0.13 (very precise) /Black=0.29 (precise)} 1-0

[Event "German Masters 2022"]
[Site "Magdeburg"]
[Date "2022.08.16"]
[Round "1.3"]
[White "Fridman, Daniel"]
[Black "Svane, Rasmus"]
[Result "1/2-1/2"]
[ECO "D41"]
[WhiteElo "2599"]
[BlackElo "2649"]
[Annotator "TA"]
[PlyCount "81"]
[EventDate "2022.08.16"]
[EventType "tourn"]
[EventCountry "GER"]
[SourceTitle "playchess.com"]
[Source "ChessBase"]
[SourceQuality "1"]
[TimeControl "40/5400+30:1800+30"]

{[%evp 11,81,25,27,23,27,-13,20,31,27,32,20,27,45,26,26,22,20,12,14,15,14,12,17,10,11,14,10,14,10,10,11,10,10,10,10,4,6,6,8,0,0,0,0,0,0,0,0,0,0,0,0,0,0,0,0,0,0,0,0,0,0,0,0,0,0,0,0,0,0,0,4,-91]} 1. d4 {[%emt 0:00:03]} Nf6 {[%emt 0:00:13]} 2. c4 {[%emt 0:00:07]} e6 {[%emt 0:00:05]} 3. Nf3 {[%emt 0:00:04]} d5 {[%emt 0:00:06]} 4. Nc3 {[%emt 0:00:06]} c5 {[%emt 0:01:22]} 5. cxd5 {[%emt 0:01:45]} cxd4 {[%emt 0:00:07]} 6. Qxd4 {[%emt 0:00:22]} exd5 {[%emt 0:00:04]} 7. e4 {[%emt 0:02:55] D41: Queen's Gambit Declined: Semi-Tarrasch with 5 cxd5.} dxe4 {[%emt 0:00:10]} 8. Qxd8+ {[%emt 0:00:07]} Kxd8 {[%emt 0:00:03]} 9. Ng5 {[%emt 0:00:10][%csl LRe4,LRf7]} Be6 {[%emt 0:00:04]} 10. Nxe6+ {[%emt 0:02:16]} fxe6 {[%emt 0:00:04]} 11. Bg5 {[%emt 0:01:06]} Nc6 $1 {[%emt 0:00:19][%mdl 4] is more profitable than 11...Ke8 at the moment.} 12. O-O-O+ {[%emt 0:13:07]} Ke8 {[%emt 0:00:22]} 13. Bb5 {[%emt 0:01:22]} Rc8 {[%emt 0:00:20] The position is equal.} 14. Kb1 {[%emt 0:06:11]} Bb4 {[%emt 0:01:52]} 15. Bxf6 {[%emt 0:01:11]} gxf6 {[%emt 0:00:04]} 16. Nxe4 {[%emt 0:00:12]} f5 {[%emt 0:01:10]} 17. Ng5 {[%emt 0:06:30] [#] Threatens to win with a3.} Ke7 $1 {[%emt 0:00:33]} 18. a3 {[%emt 0:03:33]} Ba5 {[%emt 0:02:17]} 19. f4 {[%emt 0:00:47]} h6 {[%emt 0:00:30]} 20. Nf3 {[%emt 0:00:13]} Rhd8 {[%emt 0:00:39]} 21. Rxd8 {[%emt 0:00:25]} Nxd8 {[%emt 0:05:18]} 22. Rd1 {[%emt 0:01:02]} Rc7 {[%emt 0:03:57]} 23. Ne5 {[%emt 0:00:23]} a6 {[%emt 0:01:59]} 24. Be2 {[%emt 0:08:36] [#] aiming for Nc4.} Nc6 $146 {[%emt 0:00:17]} ({Predecessor:} 24... Bb6 25. Ng6+ Ke8 26. Bh5 Nc6 27. g4 fxg4 28. Rd6 Kf7 29. f5 Kf6 30. fxe6 Kg5 {½-½ (56) Carlsen,M (2862)-Tari,A (2625) Wijk aan Zee 2021}) 25. Nxc6+ {[%emt 0:08:26]} Rxc6 $11 {[%emt 0:00:05][%mdl 4096] Endgame KRB-KRB} 26. Bf3 {[%emt 0:00:11]} Rc7 {[%emt 0:01:54]} 27. Rc1 {[%emt 0:01:49]} Rxc1+ {[%emt 0:01:37]} 28. Kxc1 {[%emt 0:00:06] KB-KB} Bc7 {[%emt 0:00:06]} 29. g3 {[%emt 0:00:07]} b6 {[%emt 0:00:04]} 30. Kd2 {[%emt 0:00:10]} e5 {[%emt 0:00:04]} 31. fxe5 {[%emt 0:00:07]} Bxe5 {[%emt 0:00:04]} 32. b3 {[%emt 0:00:10]} Bd6 {[%emt 0:00:02]} 33. a4 {[%emt 0:00:09]} a5 {[%emt 0:00:02]} 34. Ke2 {[%emt 0:00:08]} Bc5 {[%emt 0:00:04]} 35. Bc6 {[%emt 0:00:06]} Kf6 {[%emt 0:00:04]} 36. Kf3 {[%emt 0:00:06]} Bd6 {[%emt 0:00:02]} 37. h3 {[%emt 0:00:08]} Bc5 {[%emt 0:00:05]} 38. g4 {[%emt 0:00:05]} fxg4+ {[%emt 0:00:04]} 39. hxg4 {[%emt 0:00:05]} Kg5 {[%emt 0:00:07]} 40. Bb5 {[%emt 0:00:06]} h5 {[%emt 0:00:05]} 41. Ke4 {Weighted Error Value: White=0.01 (flawless) /Black=0.01 (flawless)} (41. gxh5 $11 {remains equal.} Kxh5 42. Be8+ Kg5 43. Bd7) 1/2-1/2

[Event "German Masters 2022"]
[Site "Magdeburg"]
[Date "2022.08.16"]
[Round "1.4"]
[White "Kollars, Dmitrij"]
[Black "Huschenbeth, Niclas"]
[Result "0-1"]
[ECO "C28"]
[WhiteElo "2648"]
[BlackElo "2610"]
[Annotator "TA"]
[PlyCount "56"]
[EventDate "2022.08.16"]
[EventType "tourn"]
[EventCountry "GER"]
[SourceTitle "playchess.com"]
[Source "ChessBase"]
[SourceQuality "1"]
[TimeControl "40/5400+30:1800+30"]

{[%evp 13,56,14,15,0,0,-28,-35,-36,-37,-22,-7,-23,-21,-33,-17,-33,-36,-45,-23,-25,-21,-45,-20,-49,-27,-22,-20,-23,-16,-16,-25,-26,-25,-103,-96,-103,-102,-29968,-29969,-29969,-29970,-29967,-29968,-2396,-1927]} 1. e4 {[%emt 0:01:19]} e5 {[%emt 0:00:22]} 2. Bc4 {[%emt 0:00:50]} Nf6 {[%emt 0:00:25]} 3. Nc3 {[%emt 0:00:14]} Nc6 {[%emt 0:10:07]} 4. d3 {[%emt 0:00:09]} Na5 {[%emt 0:01:07]} 5. Nge2 {[%emt 0:00:31]} Nxc4 {[%emt 0:03:34]} 6. dxc4 {[%emt 0:00:05]} Be7 {[%emt 0:01:18]} 7. O-O {[%emt 0:01:23]} d6 {[%emt 0:03:15]} 8. Ng3 {[%emt 0:01:15] C28: Vienna Game: 2...Nf6 3 Bc4 Nc6.} h5 $5 {[%emt 0:09:13][%cal Bh7h5,Bh5h4][%mdl 4] [#] An interesting side line.} 9. f4 $146 {[%emt 0:16:18]} ({Predecessor:} 9. h3 h4 10. Nge2 c6 11. Be3 Nh5 12. Qd2 Be6 13. b3 g5 14. f3 Nf4 15. Kh2 Qd7 16. Nxf4 gxf4 {0-1 (46) Shklovski,V (2220)-Allahverdiyev,A (2403) Chalkidiki 2000}) 9... h4 {[%emt 0:04:57]} 10. Nf5 {[%emt 0:00:25] Black is slightly better.} Bxf5 {[%emt 0:02:11]} 11. exf5 {[%emt 0:00:07]} c6 {[%emt 0:18:12]} 12. Be3 {[%emt 0:09:13] Against Qb6} (12. Qd3 {with more complications.} Qa5 13. Rb1 h3 14. b4) 12... Qa5 {[%emt 0:03:25]} 13. Rb1 {[%emt 0:06:19]} e4 {[%emt 0:06:03]} 14. Bd4 {[%emt 0:02:11]} O-O-O {[%emt 0:05:11]} 15. Bxf6 {[%emt 0:03:03]} Bxf6 {[%emt 0:05:35]} 16. Nxe4 {[%emt 0:00:07]} d5 {[%emt 0:00:24]} 17. cxd5 {[%emt 0:10:55]} Rxd5 {[%emt 0:00:05]} 18. Qf3 {[%emt 0:00:11]} Qxa2 {[%emt 0:00:42]} (18... h3 $5) 19. Nxf6 {[%emt 0:06:31]} gxf6 {[%emt 0:00:05]} 20. Qc3 {[%emt 0:00:04] [#] Prevents Rd2. Ra1 is the strong threat.} Rxf5 {[%emt 0:03:20][%cal Oh4h3]} 21. Ra1 {[%emt 0:12:46]} Qd5 {[%emt 0:00:43][%cal Oh4h3] Hoping for ...h3!} 22. Rxa7 {[%emt 0:01:05]} h3 {[%emt 0:05:14][%csl Gh3][%cal Rd5g2]} 23. Qf3 {[%emt 0:06:04] [#]} (23. Rf2 $11 Kb8 24. Ra1) 23... Qc5+ $1 $17 {[%emt 0:09:22]} 24. Qf2 {[%emt 0:00:04]} hxg2 $40 {[%emt 0:00:30][%cal Of5f4][%mdl 128] ( -> ...Rxf4!). Black is out for blood.} 25. Kxg2 $2 {[%emt 0:00:49][%mdl 8192] This move loses the game for White.} (25. Ra8+ $17 Kc7 26. Qxc5 Rxc5 27. Rxh8 gxf1=Q+ 28. Kxf1) 25... Rg8+ {[%emt 0:03:12]} 26. Kh1 {[%emt 0:00:12]} Qd5+ {[%emt 0:00:04]} 27. Qf3 {[%emt 0:00:02]} Rxf4 $1 {[%emt 0:00:26]} 28. Ra8+ {[%emt 0:00:06]} Kc7 {[%emt 0:00:05] Weighted Error Value: White=0.59/Black=0.04 (flawless)} 0-1

[Event "German Masters 2022"]
[Site "Magdeburg"]
[Date "2022.08.16"]
[Round "1.5"]
[White "Svane, Frederik"]
[Black "Braun, Arik"]
[Result "1-0"]
[ECO "B41"]
[WhiteElo "2521"]
[BlackElo "2594"]
[Annotator "TA"]
[PlyCount "107"]
[EventDate "2022.08.16"]
[EventType "tourn"]
[EventCountry "GER"]
[SourceTitle "playchess.com"]
[Source "ChessBase"]
[SourceQuality "1"]
[TimeControl "40/5400+30:1800+30"]

{[%evp 14,107,35,36,61,25,16,18,35,41,35,0,0,0,0,-187,-89,-129,-22,-40,0,0,0,17,12,-10,0,0,0,-18,-23,-1,0,0,34,22,44,0,36,0,0,0,0,6,16,0,6,7,7,7,35,0,0,0,8,0,0,0,0,0,26,31,31,31,29,24,110,138,104,31,77,85,300,285,297,296,737,735,706,684,12835,12835,12836,12836,12837,12837,12834,12832,12837,832,12834,12839,12838,12839,12846,12842]} 1. e4 {[%emt 0:00:03]} c5 {[%emt 0:00:07]} 2. Nf3 {[%emt 0:00:05]} e6 {[%emt 0:00:04]} 3. d4 {[%emt 0:00:05]} cxd4 {[%emt 0:00:07]} 4. Nxd4 {[%emt 0:00:06]} a6 {[%emt 0:00:25]} 5. c4 {[%emt 0:00:07]} Nf6 {[%emt 0:00:36]} 6. Nc3 {[%emt 0:00:06]} Qc7 {[%emt 0:00:19]} 7. Be2 {[%emt 0:00:08]} Bb4 {[%emt 0:01:12]} 8. Nc2 {[%emt 0:00:07]} Be7 {[%emt 0:00:41] B41: Sicilian: Kan Variation: 5 c4.} 9. g4 {[%emt 0:02:27] 9.Be3 is becoming the main line.} h6 {[%emt 0:04:45][%cal Ob7b5]} 10. f4 {[%emt 0:00:13]} d6 {[%emt 0:02:06][%cal Ob7b5] The position is equal.} 11. Be3 {[%emt 0:00:59]} b6 {[%emt 0:04:29] [#]} 12. Qd3 $146 {[%emt 0:07:54]} ({Predecessor:} 12. Bf3 Bb7 13. Qe2 Nbd7 14. h4 Rc8 15. g5 hxg5 16. hxg5 Rxh1+ 17. Bxh1 Ng8 18. Na3 {1-0 (35) Tomulic,T (2359)-Jambresic,F (2082) Cakovec 2020}) 12... Bb7 {[%emt 0:02:05]} 13. O-O-O {[%emt 0:05:40]} Nbd7 {[%emt 0:09:10]} 14. b4 $2 {[%emt 0:07:44] [#] Against Nc5} (14. h4 $11 {and White stays safe.}) 14... Rc8 {[%emt 0:05:28]} (14... b5 $1 $19 {has better winning chances.} 15. cxb5 O-O) 15. Kb2 {[%emt 0:05:20]} g5 {[%emt 0:11:22]} (15... b5 $17 {[%cal Rb5c4]} 16. cxb5 a5) 16. h4 {[%emt 0:28:18]} (16. fxg5 $2 Ne5 17. Qd4 hxg5 18. Bxg5 Nxc4+ 19. Bxc4 Qxc4 20. Bxf6 Bxf6 21. Qxf6 Rh3 $17) 16... gxf4 {[%emt 0:10:12]} ({Black should try} 16... Rg8 $15) 17. Bxf4 $11 {[%emt 0:00:16] aiming for g5.} Ne5 {[%emt 0:17:28]} 18. Bxe5 {[%emt 0:00:04]} dxe5 {[%emt 0:00:03]} 19. g5 {[%emt 0:16:07]} (19. Qe3 $5 {[%cal Rg4g5]}) 19... Rd8 {[%emt 0:00:37]} 20. Qf3 {[%emt 0:07:07]} Rxd1 $1 {[%emt 0:00:52]} 21. Rxd1 {[%emt 0:00:18]} hxg5 {[%emt 0:06:51]} 22. hxg5 {[%emt 0:00:06][%cal Bh4g5,Bg5g6,Bg6f7][%mdl 32]} Nh7 {[%emt 0:03:18]} 23. g6 {[%emt 0:03:06][%csl Gg6][%cal Rf3f7]} Ng5 {[%emt 0:03:59]} (23... fxg6 $5 {[%cal Rh7g5]} 24. Qh3 (24. Rf1 Ng5 $17) 24... Kf7 $11) 24. gxf7+ {[%emt 0:02:24]} (24. g7 Rg8 25. Qh5 Rxg7 26. Qh8+ Bf8 $17) 24... Kf8 $1 {[%emt 0:00:07][%cal Be8f8,Bf8g7,Bg7f7][%mdl 32]} 25. Qg2 {[%emt 0:05:23]} Rh4 {[%emt 0:08:16][%cal Rb7e4]} 26. Rh1 {[%emt 0:02:50]} Rxh1 {[%emt 0:01:07]} 27. Qxh1 {[%emt 0:00:01] Intending Qh8+ and mate. Really sharp!} Kg7 {[%emt 0:00:22] Against Qh8+} 28. a3 {[%emt 0:02:23]} Qd8 {[%emt 0:00:29]} 29. Qh2 {[%emt 0:01:35]} Bf6 {[%emt 0:01:29]} 30. Qg1 {[%emt 0:02:21]} Kxf7 {[%emt 0:00:42]} 31. Qe3 {[%emt 0:00:16]} Be7 {[%emt 0:01:51]} 32. Bd3 {[%emt 0:00:41]} Bc6 {[%emt 0:01:10] Prevents Na4.} 33. Na1 {[%emt 0:00:49]} a5 {[%emt 0:01:45]} 34. Nc2 {[%emt 0:00:14]} axb4 {[%emt 0:00:13]} 35. axb4 {[%emt 0:00:04]} Ke8 {[%emt 0:02:10]} 36. Kb3 {[%emt 0:00:24]} Kd7 {[%emt 0:00:18]} 37. b5 {[%emt 0:00:40]} Bb7 {[%emt 0:00:57]} 38. Na4 {[%emt 0:00:04]} Ke8 {[%emt 0:00:20]} 39. Kc3 {[%emt 0:02:39]} Qa8 {[%emt 0:01:36]} (39... Bf8 $11 {remains equal.}) 40. Nxb6 $16 {[%emt 0:00:35]} Qa2 {[%emt 0:00:48]} 41. Kd2 {[%emt 0:11:19]} (41. c5 $16 {Threatens to win with c6.} Qa5+ 42. Kb2 Nxe4 43. c6 (43. Bxe4 Qxb5+ 44. Kc3 Qa5+ 45. Kb3 Qb5+ 46. Kc3 Qa5+ 47. Kb3 Qb5+ 48. Kc3 $11)) 41... Qb1 {[%emt 0:07:40]} (41... Qb3 $1 $14) 42. c5 $36 {[%emt 0:07:25][%mdl 2048] Strongly threatening c6. White is really pushing.} Bxe4 {[%emt 0:01:48] Loses the game.} 43. Bxe4 $18 {[%emt 0:09:45]} Qxb5 {[%emt 0:00:10]} 44. Bg6+ {[%emt 0:00:40]} Kd8 $2 {[%emt 0:01:00]} (44... Kf8 45. Bd3 Qa5+ 46. Kc1 Qc3 47. Nd7+ Kg7) 45. Qa3 {[%emt 0:00:17] Threatening mate with Qa8+. White is clearly winning.} Qc6 {[%emt 0:07:35]} 46. Qa5 {[%emt 0:00:29] Nd5+ would kill now.} ({Not} 46. Qd3+ Kc7 47. Qe3 (47. Nb4 Qg2+ 48. Kc1 Qh1+ 49. Kb2 Bxc5 $16) 47... Bxc5 48. Qxg5 (48. Qxe5+ Kxb6 49. Qxg5 Qd5+ 50. Qxd5 exd5 $11) 48... Bxb6 49. Qe7+ (49. Qxe5+ Qd6+ 50. Qxd6+ Kxd6 $11) 49... Kc8 $18) 46... Bf8 {[%emt 0:11:52]} 47. Nd5+ {[%emt 0:01:23]} Kc8 {[%emt 0:00:32]} 48. Ncb4 {[%emt 0:00:36]} Qb7 {[%emt 0:01:26]} 49. c6 {[%emt 0:01:03]} Bxb4+ {[%emt 0:00:17]} 50. Nxb4 {[%emt 0:00:04]} Qb8 {[%emt 0:00:16]} 51. Qc5 {[%emt 0:00:23]} (51. Be8 $142 Ne4+ 52. Kc2) 51... Qc7 {[%emt 0:00:10]} 52. Ke3 {[%emt 0:00:25]} Qd8 {[%emt 0:00:16]} 53. Qa7 {[%emt 0:01:02][%csl Gc6][%cal Ra7b7]} Qd6 {[%emt 0:01:56] [#]} 54. Be8 $1 {[%emt 0:00:59] Weighted Error Value: White=0.21 (precise) /Black=0.30} 1-0